fUST/lending_fUST_20260521
["ID","MTS","AMOUNT","RATE_DAILY","PERIOD"]
[422712868,1779292873000,-152.0,7.947e-05,7]
[422712869,1779292890000,-500.0,7.984e-05,2]
[422712870,1779292907000,-300.0,8.118e-05,2]
[422712871,1779292924000,-300.0,8.118e-05,2]
[422712872,1779292940000,-1200.0,8.118e-05,2]
[422712873,1779292957000,-487.92611479,8.118e-05,2]
[422712874,1779292974000,-185.0,8.201e-05,2]
[422712875,1779292991000,-443.0,8.201e-05,2]
[422712876,1779293017000,-161.70661154,8.217e-05,2]
[422712877,1779293017000,-160.0,8.217e-05,2]
[422712878,1779293017000,-766.43500783,8.217e-05,2]
[422712879,1779293017000,-160.0,8.217e-05,2]
[422712881,1779293017000,-500.0,8.218e-05,2]
[422712880,1779293017000,-300.0,8.218e-05,2]
[422712882,1779293017000,-500.0,8.218e-05,2]
[422712885,1779293017000,-167.2118111,8.218e-05,2]
[422712886,1779293017000,-500.0,8.218e-05,2]
[422712887,1779293017000,-500.0,8.218e-05,2]
[422712884,1779293017000,-500.0,8.218e-05,2]
[422712888,1779293017000,-284.64656953,8.218e-05,2]
[422712883,1779293017000,-500.0,8.218e-05,2]
[422712889,1779293020000,-215.35343047,8.218e-05,2]
[422712891,1779293020000,-364.76514134,8.218e-05,2]
[422712890,1779293020000,-500.0,8.218e-05,2]
[422712892,1779293020000,-500.0,8.218e-05,2]
[422712894,1779293020000,-500.0,8.218e-05,2]
[422712893,1779293020000,-500.0,8.218e-05,2]
[422712896,1779293020000,-500.0,8.218e-05,2]
[422712895,1779293020000,-500.0,8.218e-05,2]
[422712898,1779293020000,-500.0,8.218e-05,2]
[422712899,1779293020000,-500.0,8.218e-05,2]
[422712900,1779293020000,-119.88142819,8.218e-05,2]
[422712903,1779293020000,-500.0,8.218e-05,2]
[422712902,1779293020000,-500.0,8.218e-05,2]
[422712901,1779293020000,-380.11857181,8.218e-05,2]
[422712897,1779293020000,-300.0,8.218e-05,2]
[422712904,1779293021000,-500.0,8.218e-05,2]
[422712905,1779293021000,-500.0,8.218e-05,2]
[422712906,1779293021000,-598.31,8.219e-05,2]
[422712908,1779293021000,-502.99,8.219e-05,2]
[422712909,1779293021000,-590.2629841,8.219e-05,2]
[422712910,1779293021000,-428.31844409,8.219e-05,2]
[422712907,1779293021000,-500.0,8.219e-05,2]
[422712912,1779293022000,-500.0,8.219e-05,2]
[422712911,1779293022000,-150.0911659,8.219e-05,2]
[422712913,1779293022000,-653.51,8.219e-05,2]
[422712916,1779293022000,-500.0,8.219e-05,2]
[422712914,1779293022000,-500.0,8.219e-05,2]
[422712915,1779293022000,-500.0,8.219e-05,2]
[422712918,1779293022000,-500.0,8.219e-05,2]
[422712919,1779293022000,-500.0,8.219e-05,2]
[422712920,1779293022000,-500.0,8.219e-05,2]
[422712921,1779293022000,-196.3988341,8.219e-05,2]
[422712917,1779293022000,-500.0,8.219e-05,2]
[422712923,1779293024000,-500.0,8.219e-05,2]
[422712922,1779293024000,-796.2111659,8.219e-05,2]
[422712925,1779293024000,-500.0,8.219e-05,2]
[422712924,1779293024000,-500.0,8.219e-05,2]
[422712926,1779293024000,-500.0,8.219e-05,2]
[422712928,1779293024000,-500.0,8.219e-05,2]
[422712929,1779293024000,-1047.42,8.219e-05,2]
[422712930,1779293024000,-156.3688341,8.219e-05,2]
[422712927,1779293024000,-500.0,8.219e-05,2]
[422712933,1779293025000,-500.0,8.219e-05,2]
[422712932,1779293025000,-1123.12,8.219e-05,2]
[422712934,1779293025000,-578.27,8.219e-05,2]
[422712931,1779293025000,-343.6311659,8.219e-05,2]
[422712936,1779293025000,-500.0,8.219e-05,2]
[422712937,1779293025000,-586.8,8.219e-05,2]
[422712938,1779293025000,-500.0,8.219e-05,2]
[422712939,1779293025000,-368.1788341,8.219e-05,2]
[422712935,1779293025000,-500.0,8.219e-05,2]
[422712940,1779293026000,-131.8211659,8.219e-05,2]
[422712941,1779293026000,-500.0,8.219e-05,2]
[422712945,1779293026000,-500.0,8.219e-05,2]
[422712944,1779293026000,-529.45,8.219e-05,2]
[422712942,1779293026000,-500.0,8.219e-05,2]
[422712943,1779293026000,-746.26,8.219e-05,2]
[422712949,1779293026000,-500.0,8.219e-05,2]
[422712948,1779293026000,-231.43304693,8.219e-05,2]
[422712947,1779293026000,-500.0,8.219e-05,2]
[422712950,1779293026000,-99.53578717,8.219e-05,2]
[422712946,1779293026000,-761.5,8.219e-05,2]
[422712957,1779293027000,-1553.51578717,8.219e-05,2]
[422712956,1779293027000,-500.0,8.219e-05,2]
[422712955,1779293027000,-500.0,8.219e-05,2]
[422712954,1779293027000,-1046.02,8.219e-05,2]
[422712953,1779293027000,-500.0,8.219e-05,2]
[422712952,1779293027000,-500.0,8.219e-05,2]
[422712951,1779293027000,-400.46421283,8.219e-05,2]
[422712958,1779293028000,-394.21421283,8.219e-05,2]
[422712959,1779293028000,-500.0,8.219e-05,2]
[422712961,1779293028000,-638.24,8.219e-05,2]
[422712960,1779293028000,-785.37,8.219e-05,2]
[422712963,1779293028000,-1830.55,8.219e-05,2]
[422712964,1779293028000,-351.62578717,8.219e-05,2]
[422712962,1779293028000,-500.0,8.219e-05,2]
[422712966,1779293029000,-389.67381156,8.219e-05,2]
[422712968,1779293029000,-500.0,8.219e-05,2]
[422712967,1779293029000,-500.0,8.219e-05,2]
[422712965,1779293029000,-148.37421283,8.219e-05,2]
[422712974,1779293029000,-343.72411705,8.219e-05,2]
[422712970,1779293029000,-288.02785856,8.219e-05,2]
[422712972,1779293029000,-500.0,8.219e-05,2]
[422712973,1779293029000,-927.86,8.219e-05,2]
[422712971,1779293029000,-500.0,8.219e-05,2]
[422712969,1779293029000,-902.34,8.219e-05,2]
[422712980,1779293036000,-684.68411705,8.219e-05,2]
[422712978,1779293036000,-500.0,8.219e-05,2]
[422712979,1779293036000,-500.0,8.219e-05,2]
[422712976,1779293036000,-500.0,8.219e-05,2]
[422712977,1779293036000,-2659.04,8.219e-05,2]
[422712975,1779293036000,-156.27588295,8.219e-05,2]
[422712982,1779293037000,-500.0,8.219e-05,2]
[422712985,1779293037000,-500.0,8.219e-05,2]
[422712981,1779293037000,-214.73588295,8.219e-05,2]
[422712983,1779293037000,-1832.42,8.219e-05,2]
[422712984,1779293037000,-500.0,8.219e-05,2]
[422712986,1779293037000,-1452.84411705,8.219e-05,2]
[422712987,1779293038000,-2663.13588295,8.219e-05,2]
[422712989,1779293038000,-500.0,8.219e-05,2]
[422712990,1779293038000,-1336.86411705,8.219e-05,2]
[422712988,1779293038000,-500.0,8.219e-05,2]
[422712992,1779293039000,-500.0,8.219e-05,2]
[422712991,1779293039000,-1419.91588295,8.219e-05,2]
[422712996,1779293039000,-500.0,8.219e-05,2]
[422712993,1779293039000,-500.0,8.219e-05,2]
[422712999,1779293039000,-60.70411705,8.219e-05,2]
[422712997,1779293039000,-500.0,8.219e-05,2]
[422712998,1779293039000,-500.0,8.219e-05,2]
[422712995,1779293039000,-500.0,8.219e-05,2]
[422712994,1779293039000,-519.38,8.219e-05,2]
[422713002,1779293041000,-598.35918103,8.219e-05,2]
[422713004,1779293041000,-471.34493602,8.219e-05,2]
[422713003,1779293041000,-500.0,8.219e-05,2]
[422713001,1779293041000,-1930.45,8.219e-05,2]
[422713000,1779293041000,-1499.84588295,8.219e-05,2]
[422713006,1779293042000,-325.51506398,8.219e-05,2]
[422713005,1779293042000,-300.0,8.218e-05,2]
[422713008,1779293042000,-707.24,8.219e-05,2]
[422713009,1779293042000,-1193.20493602,8.219e-05,2]
[422713007,1779293042000,-2474.04,8.219e-05,2]
[422713010,1779293043000,-1648.23506398,8.219e-05,2]
[422713011,1779293043000,-500.67,8.219e-05,2]
[422713012,1779293044000,-500.0,8.219e-05,2]
[422713013,1779293044000,-1262.57,8.219e-05,2]
[422713014,1779293044000,-500.0,8.219e-05,2]
[422713015,1779293044000,-588.52493602,8.219e-05,2]
[422713020,1779293045000,-2612.86,8.219e-05,2]
[422713019,1779293045000,-500.0,8.219e-05,2]
[422713021,1779293045000,-63.85493602,8.219e-05,2]
[422713017,1779293045000,-500.0,8.219e-05,2]
[422713018,1779293045000,-500.0,8.219e-05,2]
[422713016,1779293045000,-823.28506398,8.219e-05,2]
[422713022,1779293048000,-1420.89506398,8.219e-05,2]
[422713023,1779293048000,-1933.32,8.219e-05,2]
[422713024,1779293048000,-1645.78493602,8.219e-05,2]
[422713026,1779293049000,-500.0,8.219e-05,2]
[422713025,1779293049000,-853.58506398,8.219e-05,2]
[422713029,1779293049000,-1053.13493602,8.219e-05,2]
[422713027,1779293049000,-2086.92,8.219e-05,2]
[422713028,1779293049000,-506.36,8.219e-05,2]
[422713030,1779293135000,-200.0,8e-05,2]
[422713031,1779293136000,-200.0,8e-05,2]
[422713032,1779293136000,-200.0,8e-05,2]
[422713037,1779293137000,-79.137945,8.218e-05,2]
[422713038,1779293137000,-120.862055,8.219e-05,2]
[422713036,1779293137000,-200.0,8.218e-05,2]
[422713035,1779293137000,-20.862055,8.218e-05,2]
[422713034,1779293137000,-176.137945,8.195e-05,2]
[422713033,1779293137000,-3.0,8e-05,2]
[422713039,1779293138000,-200.0,8.219e-05,2]
[422713041,1779293138000,-38.29338846,8.219e-05,2]
[422713040,1779293138000,-161.70661154,8.218e-05,2]
[422713042,1779293139000,-200.0,8.219e-05,2]
[422713044,1779293143000,-40.0,8.219e-05,2]
[422713043,1779293143000,-160.0,8.218e-05,2]
[422713046,1779293144000,-200.0,8.219e-05,2]
[422713045,1779293144000,-200.0,8.219e-05,2]
[422713047,1779293145000,-200.0,8.219e-05,2]
[422713049,1779293145000,-200.0,8.219e-05,2]
[422713048,1779293145000,-200.0,8.219e-05,2]
[422713050,1779293146000,-200.0,8.218e-05,2]
[422713052,1779293146000,-200.0,8.218e-05,2]
[422713051,1779293146000,-200.0,8.218e-05,2]
[422713056,1779293147000,-94.48537165,8.219e-05,2]
[422713055,1779293147000,-105.51462835,8.219e-05,2]
[422713054,1779293147000,-33.56499217,8.219e-05,2]
[422713053,1779293147000,-166.43500783,8.218e-05,2]
[422713059,1779293148000,-200.0,8.219e-05,2]
[422713058,1779293148000,-200.0,8.219e-05,2]
[422713057,1779293148000,-200.0,8.219e-05,2]
[422713061,1779293149000,-200.0,8.219e-05,2]
[422713060,1779293149000,-200.0,8.219e-05,2]
[422713062,1779293150000,-200.0,8.219e-05,2]
[422713063,1779293151000,-200.0,8.219e-05,2]
[422713064,1779293152000,-200.0,8.219e-05,2]
[422713065,1779293153000,-200.0,8.219e-05,2]
[422713066,1779293154000,-200.0,8.219e-05,2]
[422713067,1779293155000,-200.0,8.219e-05,2]
[422713068,1779293156000,-71.06462835,8.219e-05,2]
[422713070,1779293156000,-200.0,8.219e-05,2]
[422713069,1779293156000,-128.93537165,8.219e-05,2]
[422713071,1779293156000,-200.0,8.219e-05,2]
[422713073,1779293157000,-128.70537165,8.219e-05,2]
[422713072,1779293157000,-71.29462835,8.219e-05,2]
[422713075,1779293159000,-200.0,8.219e-05,2]
[422713074,1779293159000,-200.0,8.219e-05,2]
[422713076,1779293160000,-200.0,8.219e-05,2]
[422713077,1779293162000,-200.0,8.218e-05,2]
[422713090,1779293231000,-500.0,8.219e-05,2]
[422713089,1779293231000,-500.0,8.219e-05,2]
[422713087,1779293231000,-2453.5,8.219e-05,2]
[422713088,1779293231000,-500.0,8.219e-05,2]
[422713086,1779293231000,-500.0,8.219e-05,2]
[422713084,1779293231000,-500.0,8.219e-05,2]
[422713085,1779293231000,-1843.34,8.219e-05,2]
[422713083,1779293231000,-665.82462835,8.219e-05,2]
[422713082,1779293231000,-300.0,8.218e-05,2]
[422713079,1779293231000,-500.0,8.218e-05,2]
[422713078,1779293231000,-262.75168237,8.218e-05,2]
[422713080,1779293231000,-200.0,8.218e-05,2]
[422713091,1779293231000,-500.0,8.219e-05,2]
[422713081,1779293231000,-240.80131234,8.218e-05,2]
[422713092,1779293231000,-500.0,8.219e-05,2]
[422713099,1779293231000,-500.0,8.219e-05,2]
[422713094,1779293231000,-598.95,8.219e-05,2]
[422713109,1779293231000,-620.27159994,8.219e-05,2]
[422713108,1779293231000,-838.55,8.219e-05,2]
[422713104,1779293231000,-500.0,8.219e-05,2]
[422713093,1779293231000,-500.0,8.219e-05,2]
[422713107,1779293231000,-500.0,8.219e-05,2]
[422713105,1779293231000,-500.0,8.219e-05,2]
[422713106,1779293231000,-1228.4,8.219e-05,2]
[422713103,1779293231000,-500.0,8.219e-05,2]
[422713102,1779293231000,-500.0,8.219e-05,2]
[422713100,1779293231000,-727.1,8.219e-05,2]
[422713101,1779293231000,-500.0,8.219e-05,2]
[422713097,1779293231000,-747.34,8.219e-05,2]
[422713096,1779293231000,-715.17,8.219e-05,2]
[422713098,1779293231000,-500.0,8.219e-05,2]
[422713095,1779293231000,-3944.48,8.219e-05,2]
[422713111,1779293255000,245308.92756977,0.000178,120]
[422713114,1779293348000,194.479,0.00017808,120]
[422713208,1779293432000,-766.43500783,8.219e-05,2]
[422713204,1779293432000,-161.70661154,8.219e-05,2]
[422713219,1779293432000,-500.0,8.219e-05,2]
[422713201,1779293432000,-500.0,8.052e-05,2]
[422713215,1779293432000,-622.16461361,8.219e-05,2]
[422713212,1779293432000,-500.0,8.219e-05,2]
[422713217,1779293432000,-500.0,8.219e-05,2]
[422713203,1779293432000,-300.0,8.218e-05,2]
[422713211,1779293432000,-382.16840006,8.219e-05,2]
[422713220,1779293432000,-1122.14,8.219e-05,2]
[422713223,1779293432000,-237.07305173,8.219e-05,2]
[422713225,1779293432000,-262.92694827,8.219e-05,2]
[422713227,1779293432000,-500.0,8.219e-05,2]
[422713232,1779293432000,-131.42694827,8.219e-05,2]
[422713229,1779293432000,-368.57305173,8.219e-05,2]
[422713235,1779293432000,-156.64347752,8.219e-05,2]
[422713234,1779293432000,-2266.98,8.219e-05,2]
[422713206,1779293432000,-160.0,8.219e-05,2]
[422713621,1779293442000,-45.8529357,8.219e-05,2]
[422713623,1779293442000,-6.49641322,8.219e-05,2]
[422713622,1779293442000,-297.50358678,8.219e-05,2]
[422713630,1779293444000,-493.50358678,8.219e-05,2]
[422713631,1779293444000,-576.4837048,8.219e-05,2]
[422713632,1779293444000,-573.38,8.219e-05,2]
[422713635,1779293444000,-500.0,8.219e-05,2]
[422713634,1779293444000,-336.13443725,8.219e-05,2]
[422713636,1779293444000,-705.22084012,8.219e-05,2]
[422713633,1779293444000,-163.86556275,8.219e-05,2]
[422713659,1779293447000,-500.0,8.219e-05,2]
[422713656,1779293447000,-500.0,8.219e-05,2]
[422713653,1779293447000,-572.65922593,8.219e-05,2]
[422713654,1779293447000,-500.0,8.219e-05,2]
[422713655,1779293447000,-2057.86,8.219e-05,2]
[422713651,1779293447000,-1672.39,8.219e-05,2]
[422713652,1779293447000,-53.62077407,8.219e-05,2]
[422713660,1779293447000,-500.0,8.219e-05,2]
[422713649,1779293447000,-428.04247293,8.219e-05,2]
[422713648,1779293447000,-121.01668695,8.219e-05,2]
[422713644,1779293447000,-500.0,8.219e-05,2]
[422713650,1779293447000,-500.0,8.219e-05,2]
[422713658,1779293447000,-611.65,8.219e-05,2]
[422713671,1779293447000,-1999.97,8.219e-05,2]
[422713661,1779293447000,-500.0,8.219e-05,2]
[422713667,1779293447000,-889.2,8.219e-05,2]
[422713668,1779293447000,-500.0,8.219e-05,2]
[422713662,1779293447000,-665.88,8.219e-05,2]
[422713665,1779293447000,-1852.76,8.219e-05,2]
[422713663,1779293447000,-500.0,8.219e-05,2]
[422713664,1779293447000,-500.0,8.219e-05,2]
[422713666,1779293447000,-500.0,8.219e-05,2]
[422713670,1779293447000,-500.0,8.219e-05,2]
[422713669,1779293447000,-2395.23,8.219e-05,2]
[422713672,1779293447000,-951.25,8.219e-05,2]
[422713673,1779293447000,-5884.19,8.219e-05,2]
[422713674,1779293447000,-466.71869371,8.219e-05,2]
[422713657,1779293447000,-500.0,8.219e-05,2]
[422713719,1779294552000,-362.0,7.399e-05,2]
[422713720,1779294552000,-300.0,7.399e-05,2]
[422713722,1779294552000,-78131.68153459,7.4e-05,2]
[422713721,1779294552000,-492.41627758,7.399e-05,2]
[422713752,1779294631000,-385.055,7.4e-05,2]
[422713746,1779294631000,-300.0,7.399e-05,2]
[422713748,1779294631000,-47821.75334596,7.4e-05,2]
[422713834,1779294638000,-500.0,8.219e-05,2]
[422713824,1779294638000,-300.0,7.547e-05,2]
[422713823,1779294638000,-300.0,7.547e-05,2]
[422713820,1779294638000,-300.0,7.547e-05,2]
[422713822,1779294638000,-300.0,7.547e-05,2]
[422713826,1779294638000,-3533.66511917,7.6e-05,2]
[422713818,1779294638000,-300.0,7.547e-05,2]
[422713816,1779294638000,-300.0,7.547e-05,2]
[422713821,1779294638000,-300.0,7.547e-05,2]
[422713811,1779294638000,-300.0,7.547e-05,2]
[422713815,1779294638000,-300.0,7.547e-05,2]
[422713817,1779294638000,-300.0,7.547e-05,2]
[422713829,1779294638000,-500.0,8.048e-05,2]
[422713838,1779294638000,-677.77,8.219e-05,2]
[422713827,1779294638000,-152.0,7.947e-05,7]
[422713825,1779294638000,-600.0,7.547e-05,2]
[422713833,1779294638000,-500.0,8.219e-05,2]
[422713831,1779294638000,-161.70661154,8.217e-05,2]
[422713828,1779294638000,-331.85781412,8e-05,2]
[422713832,1779294638000,-766.43500783,8.217e-05,2]
[422713830,1779294638000,-331.85781411,8.067e-05,2]
[422713836,1779294638000,-500.0,8.219e-05,2]
[422713849,1779294638000,-500.0,8.219e-05,2]
[422713847,1779294638000,-1127.77,8.219e-05,2]
[422713841,1779294638000,-500.0,8.219e-05,2]
[422713819,1779294638000,-300.0,7.547e-05,2]
[422713835,1779294638000,-500.0,8.219e-05,2]
[422713812,1779294638000,-300.0,7.547e-05,2]
[422713837,1779294638000,-500.0,8.219e-05,2]
[422713810,1779294638000,-300.0,7.547e-05,2]
[422713781,1779294638000,-9623.82011945,7.4e-05,2]
[422713783,1779294638000,-500.0,7.544e-05,2]
[422713782,1779294638000,-176.137945,7.411e-05,2]
[422713792,1779294638000,-500.0,7.544e-05,2]
[422713786,1779294638000,-500.0,7.544e-05,2]
[422713784,1779294638000,-500.0,7.544e-05,2]
[422713791,1779294638000,-500.0,7.544e-05,2]
[422713789,1779294638000,-500.0,7.544e-05,2]
[422713785,1779294638000,-500.0,7.544e-05,2]
[422713790,1779294638000,-500.0,7.544e-05,2]
[422713788,1779294638000,-500.0,7.544e-05,2]
[422713787,1779294638000,-253.41294021,7.544e-05,2]
[422713793,1779294638000,-500.0,7.544e-05,2]
[422713797,1779294638000,-500.0,7.544e-05,2]
[422713799,1779294638000,-500.0,7.544e-05,2]
[422713807,1779294638000,-500.0,7.544e-05,2]
[422713795,1779294638000,-500.0,7.544e-05,2]
[422713808,1779294638000,-350.0,7.544e-05,2]
[422713804,1779294638000,-500.0,7.544e-05,2]
[422713801,1779294638000,-500.0,7.544e-05,2]
[422713809,1779294638000,-500.0,7.544e-05,2]
[422713803,1779294638000,-500.0,7.544e-05,2]
[422713806,1779294638000,-610.36763745,7.544e-05,2]
[422713805,1779294638000,-39.63236255,7.544e-05,2]
[422713800,1779294638000,-500.0,7.544e-05,2]
[422713802,1779294638000,-500.0,7.544e-05,2]
[422713814,1779294638000,-300.0,7.547e-05,2]
[422713813,1779294638000,-300.0,7.547e-05,2]
[422713842,1779294638000,-506.92,8.219e-05,2]
[422713895,1779294638000,-500.0,8.219e-05,2]
[422713845,1779294638000,-500.0,8.219e-05,2]
[422713875,1779294638000,-500.0,8.219e-05,2]
[422713877,1779294638000,-500.0,8.219e-05,2]
[422713874,1779294638000,-500.0,8.219e-05,2]
[422713880,1779294638000,-500.0,8.219e-05,2]
[422713891,1779294638000,-1430.2,8.219e-05,2]
[422713890,1779294638000,-500.0,8.219e-05,2]
[422713879,1779294638000,-500.0,8.219e-05,2]
[422713883,1779294638000,-500.0,8.219e-05,2]
[422713887,1779294638000,-500.0,8.219e-05,2]
[422713881,1779294638000,-500.0,8.219e-05,2]
[422713885,1779294638000,-2483.41,8.219e-05,2]
[422713889,1779294638000,-711.59,8.219e-05,2]
[422713876,1779294638000,-805.14,8.219e-05,2]
[422713886,1779294638000,-956.74,8.219e-05,2]
[422713884,1779294638000,-721.62,8.219e-05,2]
[422713893,1779294638000,-310.18226094,8.219e-05,2]
[422713902,1779294638000,-500.0,8.219e-05,2]
[422713901,1779294638000,-500.0,8.219e-05,2]
[422713892,1779294638000,-500.0,8.219e-05,2]
[422713894,1779294638000,-500.0,8.219e-05,2]
[422713899,1779294638000,-500.0,8.219e-05,2]
[422713897,1779294638000,-623.7,8.219e-05,2]
[422713900,1779294638000,-897.97,8.219e-05,2]
[422713896,1779294638000,-500.0,8.219e-05,2]
[422713898,1779294638000,-1127.37,8.219e-05,2]
[422713839,1779294638000,-500.0,8.219e-05,2]
[422713888,1779294638000,-500.0,8.219e-05,2]
[422713866,1779294638000,-500.0,8.219e-05,2]
[422713882,1779294638000,-500.0,8.219e-05,2]
[422713872,1779294638000,-739.18,8.219e-05,2]
[422713878,1779294638000,-1238.67,8.219e-05,2]
[422713846,1779294638000,-575.22,8.219e-05,2]
[422713840,1779294638000,-500.0,8.219e-05,2]
[422713843,1779294638000,-500.0,8.219e-05,2]
[422713844,1779294638000,-500.0,8.219e-05,2]
[422713851,1779294638000,-500.0,8.219e-05,2]
[422713862,1779294638000,-151.0,8.219e-05,2]
[422713861,1779294638000,-500.0,8.219e-05,2]
[422713850,1779294638000,-500.0,8.219e-05,2]
[422713863,1779294638000,-500.0,8.219e-05,2]
[422713853,1779294638000,-500.0,8.219e-05,2]
[422713864,1779294638000,-538.41,8.219e-05,2]
[422713854,1779294638000,-500.0,8.219e-05,2]
[422713855,1779294638000,-803.61,8.219e-05,2]
[422713848,1779294638000,-500.0,8.219e-05,2]
[422713860,1779294638000,-1075.38,8.219e-05,2]
[422713873,1779294638000,-500.0,8.219e-05,2]
[422713868,1779294638000,-500.0,8.219e-05,2]
[422713869,1779294638000,-500.0,8.219e-05,2]
[422713870,1779294638000,-500.0,8.219e-05,2]
[422713867,1779294638000,-500.0,8.219e-05,2]
[422713871,1779294638000,-600.19,8.219e-05,2]
[422713858,1779294638000,-500.0,8.219e-05,2]
[422713857,1779294638000,-500.0,8.219e-05,2]
[422713859,1779294638000,-500.0,8.219e-05,2]
[422713856,1779294638000,-500.0,8.219e-05,2]
[422713852,1779294638000,-500.0,8.219e-05,2]
[422713865,1779294638000,-549.49,8.219e-05,2]
[422713943,1779294639000,-500.0,8.219e-05,2]
[422713953,1779294639000,-500.0,8.219e-05,2]
[422713952,1779294639000,-500.0,8.219e-05,2]
[422713954,1779294639000,-1775.56,8.219e-05,2]
[422713941,1779294639000,-1972.11,8.219e-05,2]
[422713944,1779294639000,-500.0,8.219e-05,2]
[422713935,1779294639000,-960.67,8.219e-05,2]
[422713939,1779294639000,-500.0,8.219e-05,2]
[422713937,1779294639000,-500.0,8.219e-05,2]
[422713936,1779294639000,-500.0,8.219e-05,2]
[422713945,1779294639000,-500.0,8.219e-05,2]
[422713938,1779294639000,-821.07,8.219e-05,2]
[422713942,1779294639000,-612.76,8.219e-05,2]
[422713948,1779294639000,-1602.7,8.219e-05,2]
[422713955,1779294639000,-500.0,8.219e-05,2]
[422713949,1779294639000,-638.13,8.219e-05,2]
[422713951,1779294639000,-2295.43,8.219e-05,2]
[422713947,1779294639000,-1757.45,8.219e-05,2]
[422713950,1779294639000,-389.67381156,8.219e-05,2]
[422713940,1779294639000,-2172.52,8.219e-05,2]
[422713957,1779294639000,-500.0,8.219e-05,2]
[422713958,1779294639000,-1916.63,8.219e-05,2]
[422713959,1779294639000,-5639.01,8.219e-05,2]
[422713962,1779294639000,-4879.81,8.219e-05,2]
[422713967,1779294639000,-500.0,8.219e-05,2]
[422713968,1779294639000,-500.0,8.219e-05,2]
[422713960,1779294639000,-500.0,8.219e-05,2]
[422713963,1779294639000,-3780.12,8.219e-05,2]
[422713946,1779294639000,-500.0,8.219e-05,2]
[422713934,1779294639000,-288.26301597,8.219e-05,2]
[422713906,1779294639000,-2701.1,8.219e-05,2]
[422713928,1779294639000,-500.0,8.219e-05,2]
[422713904,1779294639000,-500.0,8.219e-05,2]
[422713903,1779294639000,-508.28,8.219e-05,2]
[422713966,1779294639000,-500.0,8.219e-05,2]
[422713911,1779294639000,-500.0,8.219e-05,2]
[422713908,1779294639000,-1376.44,8.219e-05,2]
[422713905,1779294639000,-1051.39,8.219e-05,2]
[422713907,1779294639000,-500.0,8.219e-05,2]
[422713912,1779294639000,-580.47,8.219e-05,2]
[422713910,1779294639000,-500.0,8.219e-05,2]
[422713909,1779294639000,-500.0,8.219e-05,2]
[422713914,1779294639000,-500.0,8.219e-05,2]
[422713913,1779294639000,-500.0,8.219e-05,2]
[422713915,1779294639000,-500.0,8.219e-05,2]
[422713916,1779294639000,-500.0,8.219e-05,2]
[422713924,1779294639000,-500.0,8.219e-05,2]
[422713925,1779294639000,-707.4,8.219e-05,2]
[422713926,1779294639000,-531.46,8.219e-05,2]
[422713917,1779294639000,-500.0,8.219e-05,2]
[422713923,1779294639000,-500.0,8.219e-05,2]
[422713918,1779294639000,-500.0,8.219e-05,2]
[422713920,1779294639000,-429.17505993,8.219e-05,2]
[422713922,1779294639000,-500.0,8.219e-05,2]
[422713919,1779294639000,-764.39,8.219e-05,2]
[422713921,1779294639000,-500.0,8.219e-05,2]
[422713927,1779294639000,-500.0,8.219e-05,2]
[422713929,1779294639000,-500.0,8.219e-05,2]
[422713930,1779294639000,-500.0,8.219e-05,2]
[422713933,1779294639000,-500.0,8.219e-05,2]
[422713932,1779294639000,-500.0,8.219e-05,2]
[422713931,1779294639000,-500.0,8.219e-05,2]
[422713956,1779294639000,-943.35,8.219e-05,2]
[422713964,1779294639000,-890.81,8.219e-05,2]
[422713965,1779294639000,-2675.06,8.219e-05,2]
[422714003,1779294639000,-500.0,8.219e-05,2]
[422714005,1779294639000,-500.0,8.219e-05,2]
[422714001,1779294639000,-1850.02,8.219e-05,2]
[422714006,1779294639000,-5865.37,8.219e-05,2]
[422714017,1779294639000,-516.83,8.219e-05,2]
[422714007,1779294639000,-500.0,8.219e-05,2]
[422714010,1779294639000,-500.0,8.219e-05,2]
[422714009,1779294639000,-500.0,8.219e-05,2]
[422714008,1779294639000,-500.0,8.219e-05,2]